Cogmind - Beta 15 @@@ ROGUE MODE // 2025.05.07 @ 23:31:45 Player: gigi283 Result: Destroyed by Autobeam Turret with Autobeam Performance ------------- Evolutions (0) 0 Regions Visited (2) 400 Robots Destroyed (19) 95 Value Destroyed (490) 490 Prototype IDs (2) 40 Alien Tech Used (0) 0 Bonus (0) 0 TOTAL SCORE: 1025 Bonus ------- None Cogmind --------- Core Integrity 0/250 Matter 142/300 Energy 160/160 System Corruption 7% Temperature Cool (12) Movement Core (800) Ox15 Location -10/Subcaves Parts ------- > --- POWER (1) -------- Light Nuclear Core > --- PROPULSION (2) --- (None) > --- UTILITY (2) ------ High-capacity Storage Unit Signal Interpreter > --- WEAPON (2) ------- Mini Grenade Launcher > --- INVENTORY (20) --- Visual Processing Unit Improved Terrain Scanner Datajack Mining Laser Peak State ------------ > --- POWER ------------ Light Ion Engine > --- PROPULSION ------- Compact Wheel Compact Wheel > --- UTILITY ---------- Small Storage Unit Improved Terrain Scanner > --- WEAPON ----------- Medium Laser Assault Rifle > --- INVENTORY -------- Compact Wheel [Rating: 9] Favorites ----------- Power Ion Engine Engine Ion Engine Power Core Light Nuclear Core Propulsion Compact Wheel Wheel Compact Wheel Utility Signal Interpreter Device Improved Terrain Scanner Storage Small Storage Unit Processor Signal Interpreter Weapon Assault Rifle Energy Gun Medium Laser Energy Cannon Beam Cannon Ballistic Gun Assault Rifle Launcher Mini Grenade Launcher Build | -11 -10 -10 ------- Run | Yrd Mat Sub Slots Evolved . | . . . Power . | . . . Propulsion . | . . . Utility . | . . . Weapon . | . . . Parts Attached 17 | 7 7 3 Power 4 | 1 2 1 Engine 3 | 1 2 . Core 1 | . . 1 Reactor . | . . . Propulsion 4 | 2 1 1 Treads . | . . . Leg . | . . . Wheel 4 | 2 1 1 Hover . | . . . Flight . | . . . Utility 4 | 2 2 . Device 1 | 1 . . Storage 2 | 1 1 . Processor 1 | . 1 . Hackware . | . . . Protection . | . . . Artifact . | . . . Weapon 5 | 2 2 1 Energy Gun 1 | 1 . . Energy Cannon 1 | . 1 . Ballistic Gun 1 | 1 . . Ballistic Cannon . | . . . Launcher 2 | . 1 1 Special Weapon . | . . . Impact Weapon . | . . . Slashing Weapon . | . . . Piercing Weapon . | . . . Special Melee Weapon . | . . . Unidentified Prototypes . | . . . Parts Lost 8 | . 1 7 Power 1 | . . 1 Propulsion 4 | . 1 3 Utility . | . . . Weapon 3 | . . 3 Highest Loss Streak 7 | . 1 7 To Critical Strikes . | . . . Average Backups 5 | . 4 7 Power . | . . . Propulsion . | . . . Utility 1 | . 1 2 Weapon 2 | . 2 2 Tool/Special . | . . . Unused Backups 3 | . . 3 Power . | . . . Propulsion . | . . . Utility 1 | . . 1 Weapon 1 | . . 1 Tool/Special 1 | . . 1 Average Slot Usage (%) 96 | . 99 89 Engine 12 | . 14 9 Wheel 26 | . 27 23 Storage 14 | . 14 14 Processor 13 | . 13 14 Energy Gun 5 | . 7 . Energy Cannon 7 | . 6 9 Ballistic Gun 11 | . 13 4 Launcher 3 | . . 13 Peak Build Rating 9 | 9 9 9 Average Rating 7 | 4 7 8 On Entrance 5 | . 9 8 Naked Turns . | . . . Heaviest Build 50 | 13 50 50 Greatest Support 32 | 32 32 32 Greatest Overweight (x) 15 | . 1 15 Average Overweight (x) . | . . 1 Largest Inventory Capacity 20 | 8 20 20 Average Capacity 11 | 7 8 20 Most Carried 9 | 2 8 9 Average Carried 5 | . 5 7 Final Capacity 20 | 8 20 20 Final Carried 8 | 1 8 4 Class Distribution -------------------- 100% | Mutant Dominant Class ---------------- Mutant | -10/Materials Mutant | -10/Subcaves Resources | -11 -10 -10 ----------- Run | Yrd Mat Sub Matter Collected 527 | 231 242 54 Remotely . | . . . Salvage Created 763 | 155 487 121 Parts 37 | 10 22 5 Haulers Intercepted 1 | . 1 . Recyclers Shooed 2 | 1 1 . Parts Field Recycled . | . . . Retrieved Matter . | . . . Parts Self-Destructed 1 | . . 1 Prevented . | . . . Kills | -11 -10 -10 ------- Run | Yrd Mat Sub Combat Hostiles Destroyed 12 | . 7 5 Guns 4 | . 4 . Cannons 3 | . 3 . AOE 5 | . . 5 Classes Destroyed 8 | 2 3 3 Tunneler 3 | 3 . . Hauler 1 | . 1 . Recycler 2 | 1 1 . Watcher 1 | . 1 . Swarmer 1 | . . 1 Grunt 7 | . 7 . Sentry 1 | . . 1 Subdweller 3 | . . 3 Best Kill Streak 4 | 4 2 3 Combat Bots Only 3 | . 2 3 Max Kills in Single Turn 1 | 1 1 1 Gunslinging . | . . . Exploded 1 | . . 1 Melee . | . . . Uniques/NPCs Destroyed . | . . . Combat | -11 -10 -10 -------- Run | Yrd Mat Sub Hostile Shots Fired 62 | . 31 31 Missed 14 | . 7 7 Hits 48 | . 24 24 Projectile 48 | . 24 24 Damage Taken 942 | . 336 606 Core 250 | . 44 206 Absorbed by Shields . | . . . Core Remaining (%) 100 | 100 . . Volleys Fired 56 | 6 41 9 Largest 2 | 2 2 2 Hottest 90 | 70 80 90 Shots Fired 112 | 12 82 18 Gun 84 | 12 69 3 Cannon 16 | . 13 3 Launcher 12 | . . 12 Special . | . . . Kinetic 50 | 6 41 3 Thermal 50 | 6 41 3 Explosive 12 | . . 12 Electromagnetic . | . . . Robot Hit Streak 12 | 3 12 5 Robot Miss Streak 5 | 2 5 1 Penetration Max . | . . . Secondary Targets 2 | . 2 . Max Gunslinging Chain 1 | . 1 . Shots Hit Robots 72 | 7 56 9 Core Hits 31 | 5 17 9 Critical Kills . | . . . Critical Parts Destroyed . | . . . Critical Strikes 4 | . 4 . Burn 4 | . 4 . Melee Attacks . | . . . Impact . | . . . Slashing . | . . . Piercing . | . . . Sneak Attacks . | . . . Combat Hostiles . | . . . Follow-up Attacks . | . . . Damage Inflicted 1505 | 114 740 651 Guns 679 | 114 565 . Cannons 209 | . 175 34 Explosions 617 | . . 617 Melee . | . . . Ramming . | . . . Kinetic 371 | 51 320 . Thermal 517 | 63 420 34 Explosive 617 | . . 617 Electromagnetic . | . . . Impact . | . . . Slashing . | . . . Piercing . | . . . Highest Corruption 7 | . 7 7 Average Corruption 4 | . 2 7 Corruption Purged . | . . . Corruption Blocked . | . . . Effects 16 | . 9 7 Message Errors 4 | . 2 2 Matter Fused 5 | . 3 2 Heat Flow Errors 2 | . 2 . Energy Discharges 1 | . 1 . Parts Rejected 1 | . . 1 Data Loss (minor) 1 | . 1 . Data Loss (major) 1 | . . 1 Misfires 1 | . . 1 Overload Shots . | . . . Overflow Damage . | . . . Projectiles . | . . . Explosions . | . . . Melee . | . . . Knockbacks . | . . . Impact . | . . . Kinetic . | . . . Secondary . | . . . Self-Inflicted Damage 132 | . . 132 Shots 6 | . . 6 Rammed . | . . . Targets Rammed . | . . . Kicked . | . . . Crushed . | . . . Highest Temperature 249 | 18 249 . Average Temperature 75 | 10 82 . Received Heat Transfer 264 | . 195 69 Effects 1 | . 1 . Energy Bleed 1 | . 1 . Siege Activations . | . . . Martial Activations . | . . . Shielding Activations . | . . . Robots Disrupted . | . . . Combat Hostiles . | . . . Robots Corrupted . | . . . Combat Hostiles . | . . . Parts Fried . | . . . Impact Corruptions . | . . . Robots Melted . | . . . Combat Hostiles . | . . . Parts Melted 3 | . 3 . Heat Transferred 1665 | 185 1406 74 Parts Sabotaged . | . . . Parts Stolen . | . . . Parts Stripped . | . . . Power Chain Reactions . | . . . Alert | -11 -10 -10 ------- Run | Yrd Mat Sub Maximum Alert Level . | . . . Low Security (%) 100 | 100 100 . Level 1 . | . . . Level 2 . | . . . Level 3 . | . . . Level 4 . | . . . Level 5 . | . . . High Security . | . . . Max Security . | . . . Peak Influence 134 | 10 134 . Initial . | . . . Average 61 | 1 70 . Influence Increases 341 | 20 281 40 Destroy 0b10 Robot/C 180 | . 140 40 Destroy 0b10 Robot/NC 35 | 20 15 . Destroy Leader 44 | . 44 . Successful Hack 5 | . 5 . Destroy Structure 2 | . 2 . Lose Combat Pursuer 75 | . 75 . Influence Decreases 341 | 20 198 123 Entered New Map 41 | . . 41 Time Decay 270 | 20 188 62 Lost Part 30 | . 10 20 Squads Dispatched 2 | . 2 . Investigation . | . . . Extermination . | . . . Reinforcement 2 | . 2 . Assault . | . . . Garrison . | . . . Intercept . | . . . Searches Triggered . | . . . Construction Impeded . | . . . Haulers Reinforced . | . . . Active Scanning Responses . | . . . Cargo Convoy Interrupts . | . . . Stealth | -11 -10 -10 --------- Run | Yrd Mat Sub Distress Signals 1 | . 1 . Communications Jammed . | . . . Distress Signals . | . . . Times Spotted 26 | . 18 8 Peak Tracking Total 4 | . 4 4 Tactical Retreats 2 | . 2 . Traps | -11 -10 -10 ------- Run | Yrd Mat Sub Traps Triggered 4 | . 4 . Indirectly . | . . . Trap Hack Attempts . | . . . Triggered . | . . . Disarmed . | . . . Reprogrammed . | . . . Reused . | . . . Traps Extracted . | . . . Installed . | . . . Triggered . | . . . Machines | -11 -10 -10 ---------- Run | Yrd Mat Sub Machines Disabled . | . . . Max in Single Turn . | . . . Machines Repaired . | . . . Machines Dismantled . | . . . Machines Sabotaged . | . . . Overloaded Fab Kills . | . . . Hacking | -11 -10 -10 --------- Run | Yrd Mat Sub Machines Accessed 5 | . 5 . Terminals 5 | . 5 . Fabricators . | . . . Repair Stations . | . . . Recycling Units . | . . . Scanalyzers . | . . . Garrison Access . | . . . Total Hacks 15 | . 15 . Successful 7 | . 7 . Failed 8 | . 8 . Catastrophic 1 | . 1 . Database Lockouts . | . . . Manual 10 | . 10 . Terminals 15 | . 15 . Fabricators . | . . . Repair Stations . | . . . Recycling Units . | . . . Scanalyzers . | . . . Garrison Access . | . . . Terminal Hacks 4 | . 4 . Prototype ID Bank 1 | . 1 . Branch Access Points 1 | . 1 . Emergency Access Points 1 | . 1 . Zone Layout 1 | . 1 . Fabricator Hacks . | . . . Repair Station Hacks . | . . . Recycling Unit Hacks . | . . . Scanalyzer . | . . . Garrison Access Hacks . | . . . Unauthorized Hacks 3 | . 3 . Terminals 3 | . 3 . Botnet 3 | . 3 . Fabricators . | . . . Repair Stations . | . . . Recycling Units . | . . . Scanalyzers . | . . . Garrison Access . | . . . Data Cores Recovered . | . . . Used . | . . . Hacking Detections 5 | . 5 . Full Trace Events . | . . . Feedback Events . | . . . Feedback Blocked . | . . . Robot Schematics Acquired . | . . . Robots Built . | . . . Authchips . | . . . Time . | . . . Total Robot Build Rating . | . . . Part Schematics Acquired . | . . . Parts Built . | . . . Authchips . | . . . Time . | . . . Total Part Build Rating . | . . . Parts Repaired . | . . . Time . | . . . Parts Recycled . | . . . Recycled Matter . | . . . Retrieved Matter . | . . . Retrieved Components . | . . . Parts Scanalyzed . | . . . Part Schematics Acquired . | . . . Parts Damaged . | . . . Bothacking | -11 -10 -10 ------------ Run | Yrd Mat Sub Used RIF Installer . | . . . Robots Hacked . | . . . Non-combat . | . . . Combat . | . . . Robot Hacks Applied . | . . . Relay Couplers Released . | . . . Fabnet Peak Effective % . | . . . Robots Rewired . | . . . Allies Hacked . | . . . Hacks Repelled . | . . . Allies | -11 -10 -10 -------- Run | Yrd Mat Sub Total Allies . | . . . Largest Group . | . . . Highest-Rated Group . | . . . Highest-Rated Ally . | . . . Total Orders . | . . . Ally Attacks . | . . . Total Damage . | . . . Kills . | . . . Allies Corrupted . | . . . Allies Melted . | . . . Intel | -11 -10 -10 ------- Run | Yrd Mat Sub Active Infowar (turns) 5 | 1 4 . Terrain 5 | 1 4 . Robot Analysis Total . | . . . Derelict Logs Recovered 1 | . . 1 Drone Launches . | . . . Drone Recoveries . | . . . Exploration | -11 -10 -10 ------------- Run | Yrd Mat Sub Turns Passed 787 | 83 509 195 Spaces Moved 476 | 50 297 129 Core 5 | 3 . 2 Treads . | . . . Legs . | . . . Wheels 471 | 47 297 127 Hover . | . . . Flight . | . . . Fastest Speed 50 | 50 100 115 Average Speed 108 | 97 101 127 Slowest Speed 800 | 100 115 800 Overloaded Moves . | . . . Propulsion Burnouts . | . . . Robots Hopped . | . . . Potential Cave-ins . | . . . Cave-ins Triggered . | . . . Exploration Rate (%) 22 | 3 51 12 Regions Visited 2 Branch Regions 1 Pre-discovered Areas 1 | . . 1 Known Exits Taken 1 | . 1 . Unknown Exits Taken 1 | 1 . . Scrap Searched . | . . . Spaces Dug . | . . . Terrain Destroyed 72 | . . 72 Melee . | . . . Projectile . | . . . AOE 72 | . . 72 Terrain Rammed . | . . . Walls Destroyed . | . . . Machines Disabled . | . . . Actions | -11 -10 -10 --------- Run | Yrd Mat Sub Total 641 | 72 421 148 Wait 64 | . 62 2 Move 474 | 49 296 129 Hop . | . . . Pick Up 19 | 9 9 1 Fast Attach . | . . . Attach 14 | 7 2 5 Detach 1 | . 1 . Swap 8 | . 6 2 Drop 5 | 1 4 . Fire 56 | 6 41 9 Melee . | . . . Ram . | . . . Kick . | . . . Crush . | . . . Escape Stasis . | . . . Rewire . | . . . Trap . | . . . Miscellaneous . | . . . Route ------- -11/Scrapyard -10/Materials (discovered 3 exits: [*Mat] / *Min / *Sub) -10/Subcaves History --------- Turn | Location | Event 32 | -11/Scrapyard | Discovered new exit (range 16) 84 | -11/Scrapyard | Entered Materials 287 | -10/Materials | Discovered new exit (range 14) 306 | -10/Materials | Build established: Mutant 318 | -10/Materials | Identified exit to Mines 502 | -10/Materials | Discovered new exit (range 8) 529 | -10/Materials | Discovered new exit (range 16) 592 | -10/Materials | Identified exit to Subcaves 593 | -10/Materials | Entered Subcaves 594 | -10/Subcaves | Approached by a straggling Scientist 642 | -10/Subcaves | Learned location of Mines (-10) 742 | -10/Subcaves | Ambushed by Subdwellers from Twisted Machinery 769 | -10/Subcaves | Core integrity fell below 50% 776 | -10/Subcaves | Core integrity fell below 20% 788 | -10/Subcaves | Destroyed by Autobeam Turret with Autobeam Last Messages --------------- 00724_ Acquired 21 matter. 00725_ Acquired 33 matter. 00729_ The unstable cave ceiling collapses. 00742_ YY-BOL(R) emerges from the Twisted Machinery. 00743_ 2P-6DE(R) destroyed. 00743_ Com. Wheel destroyed. 00744_ Subatomizers dissect the Sub. Optics. C1-TD8(c): "I think it's somewhere south of here" 00749_ C1-TD8(c) destroyed. 00756_ Assault Rifle destroyed. 00763_ Com. Wheel destroyed. 00768_ The unstable cave ceiling collapses. 00769_ GR-LEE(R) destroyed. 00772_ Mni. Grenade Launcher destroyed. 00772_ Destroyed Mni. Grenade Launcher. 00779_ Com. Wheel destroyed. 00780_ System corrupted: Substantial component data lost. Map ----- +----------------------------------------------------+ | ?????????????????# ""???? ??????????????????????? | | ????????????????? ???? ? "????????????????????? | | ????????????????? ???" ??????????????????? | | ????????????????## #### " #??????????????????? | | ????????????????# # &%! ???????????????????? | | ????????????????# ## ! ????????????????????? | | ????????????????# # ?????????????????????? | | ????????????????# #?????????????????????? | | ???????????????## ##????????????????????? | | ??????????????## ##???????????????????? | | """???? ????## ! ?? ????????????????????? | | ""????# "#?## %= ## ????????????????????? | | "##?##""### * # ?????????????????????? | | # ### "##"" # ?????????????????????? | | ?# " ### # #?????????????????????? | | ?# " "## ##????????????????????? | | ??# """ ##?# ?????????????????????? | | ?## " #### ##### #?????????????????????? | | ## # # ## ##????????????????????? | | # #????????????????????? | | # #?????????????????????? | | # #??????????????????????? | | ### & ### #??????????????????????? | | # #?# # & ###?# R###??????????????????????? | | ###?# # # #???## ##?????????????????????? | | ????#### # #????## @ #?????????????????????? | | ##????## ## ###?????## #?????????????????????? | | #????#### ###????????## #????????????????????? | | ##???????####???????????# ???????????????????? | | ##?????????????????????? ??????????????????? | | ##????????????????????? ?????????????????? | | #????????????????????? ### ????????????????? | | #?????????????????????# #??# ???????????????? | | #?????????????????????# ???## ?????????????? | | #?????????????????????? ?????? ????????????? | | ##?????????????????????? ?????? ????????????? | | #??????????????????????? #???????????????????? | | #??????????????????????? ##???????????????????? | | #??????????????????????? ##????????????????????? | | #??????????????????????? ??????????????????????? | | #??????????????????????? ??????????????????????? | | ##???????????????????????????????????????????????? | | ?????????????????????????????????????????????????? | | ?????????????????????????????????????????????????? | | ?????????????????????????????????????????????????? | | ?????????????????????????????????????????????????? | | ?????????????????????????????????????????????????? | | ?????????????????????????????????????????????????? | | ?????????????????????????????????????????????????? | | ?????????????????????????????????????????????????? | +----------------------------------------------------+ Best States ------------- Heat Dissipation 25 Energy Generation 14 Energy Capacity 250 Matter Stores 300 Matter Capacity 300 Sight Range 16 Terrain Scan Density 10 Evasion (%) 40 Item Schematics ----------------- None Robot Schematics ------------------ None Fabricated ------------ Nothing Repaired ---------- Nothing Alien Tech Used ----------------- None Achievements -------------- None Challenges ------------ None Game ------ Seed NullAssembledDatajack Manual? 0 Play Time 00:14:29 Cumulative 51.1 hours Start 2025.05.07 @ 23:19:36 End 2025.05.07 @ 23:31:45 Sessions 1 Manual Loads 0 Difficulty Rogue Special Mode None Game No. 75 Rogue 75 Adventurer 0 Explorer 0 Win Type - Total 0 Types 0/0/0/0/0/0/0/0/0/0 Lore% 19 Gallery% 28 Achievement% 28 Wizard Run 0 Options --------- Layout 2 ASCII 0 Keyboard 0 Movement Mouse Keybinds 0 Fullscreen 2 Font 24/Crisp Map View 50x44 Zoom Use 0% Tactical HUD 1 Map Filters NONE Filters NONE Steam 1 RUN: 098ef60c-ffe4-4ca5-983d-db3ecea04eb1